[Event "Aktogay Masters 2019"]
[Site "Aktogay"]
[Date "2019.05.17"]
[Round "9.3"]
[White "Nukin, Tolegen"]
[Black "Kim, Kristina"]
[Result "1/2-1/2"]
[ECO "A30"]
[WhiteElo "2113"]
[BlackElo "1916"]
[Annotator "NA"]
[PlyCount "124"]
[EventDate "2019.05.11"]
[EventType "tourn"]
[EventCountry "KAZ"]
[SourceTitle "playchess.com"]
[Source "ChessBase"]
[SourceQuality "1"]
[TimeControl "5400+30"]

1. Nf3 {[%emt 0:05:33]} Nf6 {[%emt 0:01:10]} 2. c4 {[%emt 0:00:06]} c5 {[%emt 0:00:14]} 3. Nc3 {[%emt 0:00:10]} b6 {[%emt 0:00:44]} 4. g3 {[%emt 0:00:06]} Bb7 {[%emt 0:00:06]} 5. Bg2 {[%emt 0:00:05]} e6 {[%emt 0:03:26]} 6. O-O {[%emt 0:00:12]} Be7 {[%emt 0:00:12]} 7. Re1 {[%emt 0:00:10]} d6 {[%emt 0:00:29]} 8. e4 {[%emt 0:00:07]} a6 {[%emt 0:00:11]} 9. d4 {[%emt 0:00:06]} cxd4 10. Nxd4 {[%emt 0:00:03]} Qc7 {[%emt 0:00:20]} 11. Be3 {[%emt 0:00:26]} Nbd7 12. f4 O-O {[%emt 0:00:37]} 13. g4 {[%emt 0:00:54]} Nc5 {[%emt 0:05:37]} 14. Bf2 {[%emt 0:03:26]} g6 {[%emt 0:03:03]} 15. b4 {[%emt 0:06:26]} Ncd7 {[%emt 0:00:32]} 16. Rc1 {[%emt 0:00:06]} Rac8 {[%emt 0:06:30]} 17. e5 {[%emt 0:08:32]} dxe5 {[%emt 0:07:38]} 18. fxe5 {[%emt 0:02:37]} Ne8 {[%emt 0:02:22]} 19. Ndb5 {[%emt 0:01:35]} axb5 {[%emt 0:02:12]} 20. Nxb5 {[%emt 0:00:05]} Qb8 {[%emt 0:01:52]} 21. Qxd7 {[%emt 0:00:09]} Bxg2 {[%emt 0:00:23]} 22. Qxe7 {[%emt 0:01:14]} Qa8 {[%emt 0:17:25]} 23. Qa7 {[%emt 0:07:53]} Qf3 {[%emt 0:07:42]} 24. Re3 {[%emt 0:08:05]} Qxg4 {[%emt 0:01:18]} 25. Rg3 {[%emt 0:00:07]} Qf4 {[%emt 0:01:11]} 26. Be3 {[%emt 0:00:31]} Qe4 {[%emt 0:00:48]} 27. Qd7 {[%emt 0:07:21]} Bf3 {[%emt 0:09:50]} 28. Kf2 {[%emt 0:04:17]} Ra8 {[%emt 0:13:10]} 29. Rxf3 {[%emt 0:04:15]} Rxa2+ {[%emt 0:00:18]} 30. Bd2 {[%emt 0:00:10]} Qxe5 {[%emt 0:00:26]} 31. Kg1 {[%emt 0:01:56]} Nf6 {[%emt 0:01:03]} 32. Qd3 {[%emt 0:21:17]} Ne4 {[%emt 0:01:16]} 33. Bf4 {[%emt 0:01:19]} Qb2 {[%emt 0:03:46]} 34. Qf1 {[%emt 0:00:27]} e5 {[%emt 0:06:44]} 35. Rb1 {[%emt 0:02:32]} Qc2 {[%emt 0:00:31]} 36. Rc1 {[%emt 0:02:09]} Qb2 {[%emt 0:00:01]} 37. Rb1 {[%emt 0:00:07]} Qc2 {[%emt 0:00:09]} 38. Bxe5 {[%emt 0:08:08]} Nd2 {[%emt 0:02:04]} 39. Rf2 {[%emt 0:00:04]} Nxf1 {[%emt 0:02:36]} 40. Rxc2 {[%emt 0:00:04]} Rxc2 {[%emt 0:00:02]} 41. Kxf1 {[%emt 0:00:42]} Rxc4 {[%emt 0:00:30]} 42. Nd6 {[%emt 0:00:25]} Rc2 {[%emt 0:00:31]} 43. Ra1 {[%emt 0:02:19]} f6 {[%emt 0:00:02]} 44. Bf4 {[%emt 0:00:24]} g5 {[%emt 0:00:15]} 45. Bg3 {[%emt 0:00:14]} h5 {[%emt 0:01:42]} 46. Ra7 {[%emt 0:00:52]} h4 {[%emt 0:00:41]} 47. Bf2 {[%emt 0:00:04]} Rd8 {[%emt 0:01:00]} 48. Ne4 {[%emt 0:00:34]} Rc6 {[%emt 0:00:21]} 49. Ra6 {[%emt 0:03:48]} Re8 {[%emt 0:00:24]} 50. Nc5 {[%emt 0:00:04]} Rd6 {[%emt 0:00:52]} 51. Nb3 {[%emt 0:00:03]} Rd3 {[%emt 0:00:37]} 52. Nd4 {[%emt 0:00:39]} h3 {[%emt 0:00:06]} 53. Nc2 {[%emt 0:00:32]} Rd2 {[%emt 0:00:27]} 54. Ne1 {[%emt 0:02:48]} Ree2 {[%emt 0:00:01]} 55. Bg1 {[%emt 0:00:37]} Re4 {[%emt 0:00:34]} 56. Bxb6 {[%emt 0:00:28]} Rf4+ {[%emt 0:00:31]} 57. Kg1 {[%emt 0:00:01]} Rg4+ {[%emt 0:01:03]} 58. Kf1 {[%emt 0:01:00]} Rxh2 {[%emt 0:00:15]} 59. Ra8+ {[%emt 0:00:24]} Kg7 {[%emt 0:00:10]} 60. Ra7+ {[%emt 0:00:38]} Kg6 {[%emt 0:00:04]} 61. b5 {[%emt 0:00:33]} Rf4+ {[%emt 0:01:13]} 62. Kg1 {[%emt 0:00:10]} Re2 {[%emt 0:00:08]} 1/2-1/2

[Event "Aktogay Masters 2019"]
[Site "Aktogay"]
[Date "2019.05.17"]
[Round "9.5"]
[White "Bekturov, Tamerlan"]
[Black "Sukhov, Artur"]
[Result "1/2-1/2"]
[ECO "D70"]
[WhiteElo "2241"]
[BlackElo "2110"]
[Annotator "NA"]
[PlyCount "101"]
[EventDate "2019.05.11"]
[EventType "tourn"]
[EventCountry "KAZ"]
[SourceTitle "playchess.com"]
[Source "ChessBase"]
[SourceQuality "1"]
[TimeControl "5400+30"]

1. d4 {[%emt 0:02:20]} Nf6 {[%emt 0:00:00]} 2. Nf3 {[%emt 0:00:06]} d5 {[%emt 0:00:00]} 3. c4 {[%emt 0:00:09]} c6 {[%emt 0:01:43]} 4. e3 {[%emt 0:03:34]} g6 {[%emt 0:00:26]} 5. Nbd2 {[%emt 0:02:25]} Bg7 {[%emt 0:00:08]} 6. Be2 {[%emt 0:00:12]} O-O {[%emt 0:00:13]} 7. b4 {[%emt 1:24:44]} Ne4 {[%emt 1:31:00]} 8. Bb2 {[%emt 0:00:00]} Nxd2 {[%emt 0:00:00]} 9. Qxd2 {[%emt 0:00:00]} Nd7 {[%emt 0:00:00]} 10. cxd5 {[%emt 0:00:00]} cxd5 {[%emt 0:00:00]} 11. O-O {[%emt 0:00:00]} Nb6 {[%emt 0:00:00]} 12. Rfc1 {[%emt 0:00:00]} Bg4 {[%emt 0:00:00]} 13. a4 {[%emt 0:00:00]} Bxf3 {[%emt 0:00:00]} 14. gxf3 {[%emt 0:00:00]} Rc8 {[%emt 0:00:00]} 15. Rc5 Nc4 {[%emt 0:04:00]} 16. Bxc4 {[%emt 0:00:00]} dxc4 {[%emt 0:00:30]} 17. Qe2 {[%emt 0:05:00]} Rxc5 {[%emt 0:00:00]} 18. bxc5 {[%emt 0:00:30]} e5 {[%emt 0:01:00]} 19. dxe5 {[%emt 0:00:30]} Qd5 {[%emt 0:00:30]} 20. Rc1 {[%emt 0:00:00]} Bxe5 {[%emt 0:00:00]} 21. Bxe5 Qxe5 {[%emt 0:01:00]} 22. Qxc4 {[%emt 0:00:00]} Rc8 {[%emt 0:00:00]} 23. h4 {[%emt 0:00:00]} Rc6 24. Qd4 {[%emt 0:02:30]} Qf5 {[%emt 0:00:00]} 25. Rc4 {[%emt 0:00:30]} Qxf3 {[%emt 0:00:00]} 26. Qd8+ {[%emt 0:00:00]} Kg7 {[%emt 0:00:00]} 27. Rf4 {[%emt 0:00:00]} Qh3 {[%emt 0:00:00]} 28. Qe7 {[%emt 0:00:00]} Qe6 {[%emt 0:00:00]} 29. Qxb7 {[%emt 0:00:00]} Rxc5 {[%emt 0:00:00]} 30. Qxa7 {[%emt 0:02:30]} Rd5 {[%emt 0:00:00]} 31. Qb7 {[%emt 0:00:00]} Rd7 {[%emt 0:00:00]} 32. Qb2+ {[%emt 0:00:00]} Kh6 {[%emt 0:00:00]} 33. Kh2 {[%emt 0:01:30]} Qc6 {[%emt 0:00:00]} 34. Qb5 {[%emt 0:00:30]} Qxb5 {[%emt 0:00:00]} 35. axb5 {[%emt 0:00:30]} Rb7 36. Rb4 {[%emt 0:00:00]} Rb6 {[%emt 0:00:00]} 37. Kg3 {[%emt 0:00:00]} Kh5 {[%emt 0:00:00]} 38. Kf3 {[%emt 0:00:00]} f5 {[%emt 0:00:00]} 39. e4 {[%emt 0:00:00]} fxe4+ {[%emt 0:00:00]} 40. Kxe4 {[%emt 0:00:00]} Kxh4 {[%emt 0:00:00]} 41. Kd5+ {[%emt 0:00:00]} Kh3 {[%emt 0:00:00]} 42. Kc5 {[%emt 0:00:00]} Rb8 {[%emt 0:00:00]} 43. b6 {[%emt 0:00:00]} h5 {[%emt 0:00:00]} 44. Kc6 {[%emt 0:00:00]} Kg2 {[%emt 0:00:00]} 45. Kc7 {[%emt 0:00:00]} Rxb6 {[%emt 0:00:00]} 46. Kxb6 {[%emt 0:00:00]} Kxf2 {[%emt 0:00:00]} 47. Kc5 {[%emt 0:00:00]} g5 {[%emt 0:00:00]} 48. Kd5 {[%emt 0:00:00]} h4 {[%emt 0:00:00]} 49. Ke4 {[%emt 0:00:00]} h3 {[%emt 0:00:00]} 50. Rb2+ {[%emt 0:00:00]} Kg3 {[%emt 0:00:00]} 51. Kf5 {[%emt 0:00:06]} 1/2-1/2